Cogmind - Beta 16.1 @@@ ROGUE MODE // 2026.03.10 @ 11:03:54 Player: Ragnakor Result: Destroyed by Y-45 Defender with Beam Rifle Performance ------------- Evolutions (1) 500 Regions Visited (2) 400 Robots Destroyed (32) 160 Value Destroyed (608) 608 Prototype IDs (0) 0 Alien Tech Used (0) 0 Bonus (0) 0 TOTAL SCORE: 1668 Bonus ------- None Cogmind --------- Core Integrity 0/400 Matter 249/300 Energy 80/100 System Corruption 0% Temperature Cool (15) Movement Core (150) Ox2 Location -9/Materials Parts ------- > --- POWER (2) -------- (None) > --- PROPULSION (3) --- (None) > --- UTILITY (2) ------ Heat Sink Visual Processing Unit > --- WEAPON (2) ------- Spread Laser Rocket Launcher > --- INVENTORY (5) ---- Light Ion Engine Hover Unit Seismic Detector Beam Rifle Peak State ------------ > --- POWER ------------ Light Nuclear Core > --- PROPULSION ------- Hover Unit Hover Unit Hover Unit > --- UTILITY ---------- Small Storage Unit Improved Terrain Scanner > --- WEAPON ----------- Beam Rifle Beam Rifle > --- INVENTORY -------- Ion Engine Light Ion Engine Light Ion Engine Visual Processing Unit Seismic Detector Small Laser Small Laser Mining Laser [Rating: 14] Favorites ----------- Power Light Nuclear Core Engine Light Ion Engine Power Core Light Nuclear Core Propulsion Aluminum Leg Leg Aluminum Leg Wheel Armored Wheel Hover Unit Hover Unit Flight Unit Flight Unit Utility Small Storage Unit Device Improved Terrain Scanner Storage Small Storage Unit Processor Visual Processing Unit Weapon Small Laser Energy Gun Small Laser Ballistic Gun Assault Rifle Launcher Rocket Launcher Special Weapon Mining Laser Slashing Weapon Katana Special Melee Weapon Datajack Build | -11 -10 -9 ------- Run | Yrd Mat Mat Slots Evolved 2 | . . 2 Power 1 | . . 1 Propulsion 1 | . . 1 Utility . | . . . Weapon . | . . . Parts Attached 37 | 9 7 21 Power 7 | 1 2 4 Engine 6 | 1 1 4 Core 1 | . 1 . Reactor . | . . . Propulsion 11 | 2 2 7 Treads . | . . . Leg 4 | 2 2 . Wheel 1 | . . 1 Hover 3 | . . 3 Flight 3 | . . 3 Utility 4 | 2 . 2 Device 2 | 1 . 1 Storage 1 | 1 . . Processor 1 | . . 1 Hackware . | . . . Protection . | . . . Artifact . | . . . Weapon 15 | 4 3 8 Energy Gun 10 | 2 2 6 Energy Cannon . | . . . Ballistic Gun 1 | 1 . . Ballistic Cannon . | . . . Launcher 1 | . . 1 Special Weapon 1 | 1 . . Impact Weapon . | . . . Slashing Weapon 1 | . . 1 Piercing Weapon . | . . . Special Melee Weapon 1 | . 1 . Unidentified Prototypes . | . . . Parts Lost 20 | . 3 17 Power 6 | . . 6 Propulsion 6 | . 1 5 Utility 2 | . . 2 Weapon 6 | . 2 4 Highest Loss Streak 11 | . 3 11 To Critical Strikes . | . . . Average Backups 6 | 2 7 6 Power 2 | 1 2 2 Propulsion . | . . . Utility 1 | . 1 1 Weapon 2 | 1 2 2 Tool/Special . | . . . Unused Backups 1 | . . 1 Power . | . . . Propulsion . | . . . Utility 1 | . . 1 Weapon . | . . . Tool/Special . | . . . Average Slot Usage (%) 91 | . 96 77 Engine 6 | . 5 11 Core 6 | . 8 3 Leg 20 | . 27 4 Hover 1 | . . 4 Flight 3 | . . 11 Device 11 | . 13 5 Storage 12 | . 14 9 Processor 1 | . . 6 Energy Gun 19 | . 19 18 Special Melee Weapon 4 | . 6 . Peak Build Rating 14 | 9 11 14 Average Rating 9 | 5 9 9 On Entrance 6 | . 9 10 Avg Prop Armor Cover (%) 10 | . 10 14 Naked Turns . | . . . Heaviest Build 17 | 13 15 17 Greatest Support 20 | 20 20 18 Greatest Overweight (x) 5 | . 4 5 Average Overweight (x) . | . . 1 Largest Inventory Capacity 8 | 8 8 8 Average Capacity 7 | 6 8 7 Most Carried 8 | 5 8 8 Average Carried 6 | 2 7 6 Final Capacity 8 | 8 8 5 Final Carried 8 | 5 8 4 Class Distribution -------------------- 56% | Scavenger-Mutant 43% | Mutant Dominant Class ---------------- Scavenger-Mutant | -10/Materials Scavenger-Mutant | -9/Materials Resources | -11 -10 -9 ----------- Run | Yrd Mat Mat Matter Collected 705 | 256 220 229 Remotely . | . . . Salvage Created 953 | 147 500 306 Parts 75 | 14 36 25 Haulers Intercepted 2 | . 2 . Recyclers Shooed 2 | . 2 . Parts Field Recycled . | . . . Retrieved Matter . | . . . Parts Self-Destructed . | . . . Prevented . | . . . Parts Restored . | . . . Kills | -11 -10 -9 ------- Run | Yrd Mat Mat Combat Hostiles Destroyed 23 | . 12 11 Melee 1 | . . 1 Guns 20 | . 10 10 AOE 2 | . 2 . Classes Destroyed 9 | 3 4 2 Worker 1 | 1 . . Tunneler 3 | 3 . . Hauler 2 | . 2 . Recycler 1 | 1 . . Watcher 2 | . 2 . Swarmer 12 | . 6 6 Grunt 9 | . 6 3 Duelist 1 | . . 1 Sentry 1 | . . 1 Best Kill Streak 5 | 3 4 5 Combat Bots Only 5 | . 3 5 Max Kills in Single Turn 2 | 1 2 1 Gunslinging . | . . . Exploded 2 | . 2 . Melee 1 | . . 1 Uniques/NPCs Destroyed . | . . . Combat | -11 -10 -9 -------- Run | Yrd Mat Mat Hostile Shots Fired 197 | . 56 141 Missed 51 | . 18 33 Hits 146 | . 38 108 Melee 4 | . . 4 Projectile 142 | . 38 104 Critical Strikes 6 | . . 6 Damage Taken 1748 | . 444 1304 Core 456 | . 48 408 Absorbed by Shields . | . . . Core Remaining (%) 90 | 100 80 . Volleys Fired 121 | 13 70 38 Largest 2 | 2 2 2 Hottest 156 | 100 90 156 Shots Fired 202 | 23 118 61 Gun 197 | 20 118 59 Cannon . | . . . Launcher 1 | . . 1 Special 4 | 3 . 1 Kinetic 7 | 7 . . Thermal 152 | 13 79 60 Explosive 1 | . . 1 Electromagnetic 42 | 3 39 . Robot Hit Streak 9 | 4 5 9 Robot Miss Streak 10 | 3 4 10 Penetration Max . | . . . Secondary Targets 5 | . 1 4 Max Gunslinging Chain 1 | . 1 1 Shots Hit Robots 108 | 10 63 35 Core Hits 56 | 6 29 21 Critical Kills . | . . . Critical Parts Destroyed . | . . . Critical Strikes 7 | . 3 4 Burn 5 | . 1 4 Corrupt 2 | . 2 . Melee Attacks 5 | . 2 3 Impact . | . . . Slashing 3 | . . 3 Piercing . | . . . Sneak Attacks 2 | . 2 . Combat Hostiles . | . . . Follow-up Attacks . | . . . Damage Inflicted 1587 | 150 902 535 Guns 1338 | 126 777 435 Cannons . | . . . Explosions 146 | . 125 21 Melee 55 | . . 55 Ramming . | . . . Kinetic 53 | 53 . . Thermal 1165 | 72 634 459 Explosive 21 | . . 21 Electromagnetic 293 | 25 268 . Impact . | . . . Slashing 55 | . . 55 Piercing . | . . . Highest Corruption . | . . . Average Corruption . | . . . Corruption Purged . | . . . Corruption Blocked . | . . . Overload Shots . | . . . Overflow Damage . | . . . Projectiles . | . . . Explosions . | . . . Melee . | . . . Knockbacks . | . . . Impact . | . . . Kinetic . | . . . Secondary . | . . . Self-Inflicted Damage 48 | . 34 14 Shots 2 | . 1 1 Rammed . | . . . Targets Rammed . | . . . Kicked . | . . . Crushed . | . . . Highest Temperature 526 | 36 435 526 Average Temperature 160 | 15 120 276 Received Heat Transfer 540 | . 177 363 Effects 22 | . 5 17 Shutdowns 7 | . 1 6 Energy Bleed 2 | . 1 1 Interference 4 | . . 4 Matter Decay 3 | . . 3 Short Circuit 3 | . 1 2 Damage (major) 2 | . 2 . Damage (core) 1 | . . 1 Siege Activations . | . . . Martial Activations . | . . . Shielding Activations . | . . . Robots Disrupted . | . . . Combat Hostiles . | . . . Robots Corrupted . | . . . Combat Hostiles . | . . . Parts Fried . | . . . Impact Corruptions . | . . . Robots Melted . | . . . Combat Hostiles . | . . . Parts Melted 2 | . 1 1 Heat Transferred 3102 | 198 1525 1379 Parts Sabotaged . | . . . Parts Stolen . | . . . Parts Stripped . | . . . Power Chain Reactions 2 | . 2 . Alert | -11 -10 -9 ------- Run | Yrd Mat Mat Maximum Alert Level . | . . . Low Security (%) 100 | 100 100 100 Level 1 . | . . . Level 2 . | . . . Level 3 . | . . . Level 4 . | . . . Level 5 . | . . . High Security . | . . . Max Security . | . . . Peak Influence 136 | 10 136 115 Initial . | . . . Average 25 | 2 22 40 Influence Increases 820 | 25 377 418 Destroy 0b10 Robot/C 460 | . 240 220 Destroy 0b10 Robot/NC 45 | 25 20 . Destroy Leader 108 | . 58 50 Successful Hack 40 | . 34 6 Destroy Structure 17 | . 10 7 Lose Combat Pursuer 150 | . 15 135 Influence Decreases 732 | 25 377 330 Time Decay 432 | 25 239 168 Lost Part 172 | . 10 162 Purge Threat 128 | . 128 . Squads Dispatched 2 | . 2 . Investigation 1 | . 1 . Extermination . | . . . Reinforcement 1 | . 1 . Assault . | . . . Garrison . | . . . Intercept . | . . . Searches Triggered . | . . . Construction Impeded . | . . . Haulers Reinforced . | . . . Active Scanning Responses . | . . . Cargo Convoy Interrupts . | . . . Stealth | -11 -10 -9 --------- Run | Yrd Mat Mat Distress Signals 3 | . 3 . Communications Jammed . | . . . Distress Signals . | . . . Times Spotted 43 | . 20 23 Peak Tracking Total 8 | . 5 8 Tactical Retreats 4 | . 1 3 Traps | -11 -10 -9 ------- Run | Yrd Mat Mat Traps Triggered 6 | . 6 . Indirectly . | . . . Trap Hack Attempts . | . . . Triggered . | . . . Disarmed . | . . . Reprogrammed . | . . . Reused . | . . . Traps Extracted . | . . . Installed . | . . . Triggered . | . . . Machines | -11 -10 -9 ---------- Run | Yrd Mat Mat Machines Disabled . | . . . Max in Single Turn . | . . . Machines Repaired . | . . . Machines Dismantled . | . . . Machines Sabotaged . | . . . Overloaded Fab Kills . | . . . Hacking | -11 -10 -9 --------- Run | Yrd Mat Mat Machines Accessed 12 | . 10 2 Terminals 8 | . 7 1 Fabricators . | . . . Repair Stations 1 | . 1 . Recycling Units 3 | . 2 1 Scanalyzers . | . . . Garrison Access . | . . . Total Hacks 35 | . 30 5 Successful 14 | . 9 5 Failed 21 | . 21 . Catastrophic 2 | . 2 . Database Lockouts . | . . . Manual . | . . . Terminals 22 | . 20 2 Fabricators . | . . . Repair Stations 4 | . 4 . Recycling Units 9 | . 6 3 Scanalyzers . | . . . Garrison Access . | . . . Terminal Hacks 10 | . 8 2 Robot Analysis 2 | . 1 1 Branch Access Points 1 | . 1 . Terminal Index 1 | . 1 . Unreport Threat 2 | . 2 . Hauler Manifests 3 | . 2 1 Zone Layout 1 | . 1 . Fabricator Hacks . | . . . Repair Station Hacks 1 | . 1 . Scan Component 1 | . 1 . Recycling Unit Hacks 3 | . . 3 Process 1 | . . 1 Report Inventory 1 | . . 1 Retrieve Matter 1 | . . 1 Scanalyzer . | . . . Garrison Access Hacks . | . . . Unauthorized Hacks . | . . . Terminals . | . . . Fabricators . | . . . Repair Stations . | . . . Recycling Units . | . . . Scanalyzers . | . . . Garrison Access . | . . . Data Cores Recovered . | . . . Used . | . . . Hacking Detections 11 | . 10 1 Full Trace Events . | . . . Feedback Events . | . . . Feedback Blocked . | . . . Robot Schematics Acquired . | . . . Robots Built . | . . . Authchips . | . . . Time . | . . . Total Robot Build Rating . | . . . Part Schematics Acquired . | . . . Parts Built . | . . . Authchips . | . . . Time . | . . . Total Part Build Rating . | . . . Part Studies Acquired . | . . . Parts Repaired . | . . . Time . | . . . Parts Recycled . | . . . Recycled Matter 35 | . . 35 Retrieved Matter 35 | . . 35 Retrieved Components . | . . . Parts Scanalyzed . | . . . Part Schematics Acquired . | . . . Parts Damaged . | . . . Bothacking | -11 -10 -9 ------------ Run | Yrd Mat Mat Used RIF Installer . | . . . Robots Hacked 1 | . 1 . Non-combat 1 | . 1 . Combat . | . . . Robot Hacks Applied 1 | . 1 . no_distress 1 | . 1 . Relay Couplers Released . | . . . Fabnet Peak Effective % . | . . . Robots Rewired . | . . . Allies Hacked . | . . . Hacks Repelled . | . . . Allies | -11 -10 -9 -------- Run | Yrd Mat Mat Total Allies . | . . . Largest Group . | . . . Highest-Rated Group . | . . . Highest-Rated Ally . | . . . Total Orders . | . . . Ally Attacks . | . . . Total Damage . | . . . Kills . | . . . Allies Corrupted . | . . . Allies Melted . | . . . Intel | -11 -10 -9 ------- Run | Yrd Mat Mat Active Infowar (turns) 1678 | 34 1212 432 Optics 294 | . . 294 Terrain 1384 | 34 1212 138 Robot Analysis Total 2 | . 1 1 Derelict Logs Recovered . | . . . Drone Launches . | . . . Drone Recoveries . | . . . Exploration | -11 -10 -9 ------------- Run | Yrd Mat Mat Turns Passed 1825 | 146 1218 461 Spaces Moved 874 | 75 570 229 Core 60 | 6 11 43 Treads . | . . . Legs 661 | 69 559 33 Wheels 19 | . . 19 Hover 15 | . . 15 Flight 119 | . . 119 Fastest Speed 34 | 50 100 34 Average Speed 151 | 114 164 131 Slowest Speed 360 | 120 250 360 Overloaded Moves . | . . . Propulsion Burnouts . | . . . Robots Hopped . | . . . Potential Cave-ins . | . . . Cave-ins Triggered . | . . . Exploration Rate (%) 33 | 5 72 23 Regions Visited 2 Branch Regions . Pre-discovered Areas . | . . . Known Exits Taken . | . . . Unknown Exits Taken 2 | 1 1 . Scrap Searched . | . . . Spaces Dug 2 | 2 . . Terrain Destroyed 15 | 2 9 4 Melee . | . . . Projectile 2 | 2 . . AOE 13 | . 9 4 Terrain Rammed . | . . . Walls Destroyed . | . . . Machines Disabled . | . . . Actions | -11 -10 -9 --------- Run | Yrd Mat Mat Total 1138 | 101 725 312 Wait 71 | . 59 12 Move 872 | 74 569 229 Hop . | . . . Pick Up 10 | 5 5 . Fast Attach 24 | 7 11 6 Attach 11 | . 2 9 Detach . | . . . Swap 21 | 2 5 14 Drop 3 | . 2 1 Fire 121 | 13 70 38 Melee 5 | . 2 3 Ram . | . . . Kick . | . . . Crush . | . . . Escape Stasis . | . . . Rewire . | . . . Trap . | . . . Miscellaneous . | . . . Route ------- -11/Scrapyard -10/Materials (discovered 3 exits: *Mat x2 / *Min) -9/Materials History --------- Turn | Location | Event 27 | -11/Scrapyard | Discovered new exit (range 15) 147 | -11/Scrapyard | Entered Materials 273 | -10/Materials | Identified exit to Mines 301 | -10/Materials | Build established: Mutant 407 | -10/Materials | Discovered new exit (range 12) 625 | -10/Materials | Lost 3 parts (1n2w) 909 | -10/Materials | Build established: Scavenger-Mutant 1109 | -10/Materials | Discovered new exit (range 4) 1365 | -10/Materials | Entered another Materials area 1365 | -9/Materials | Evolved 2 slots: Power x1, Propulsion x1 1562 | -9/Materials | Lost 5 parts (1p2n1u1w) 1752 | -9/Materials | Core integrity fell below 50% 1797 | -9/Materials | Lost 11 parts (4p3n1u3w) 1801 | -9/Materials | Core integrity fell below 20% 1826 | -9/Materials | Destroyed by Y-45 Defender with Beam Rifle Last Messages --------------- 01751_ Mining Laser destroyed. 01752_ R-06 Scavenger collects Particle Gun. 01752_ K-01 Serf collects debris. 01754_ Flight Unit destroyed. 01755_ K-01 Serf collects debris. 01757_ Lgt. Ion Engine destroyed. 01761_ K-01 Serf collects debris. 01765_ Acquired Katana. 01766_ Sml. Storage Unit destroyed. 01772_ Critical hit (Burn: +37). 01772_ Y-45 Defender destroyed. 01773_ K-01 Serf collects debris. 01776_ Acquired 15 matter. 01776_ K-01 Serf collects debris. 01779_ Acquired Heat Sink. 01789_ Acquired Spread Laser. 01800_ R-06 Scavenger collects Katana. 01819_ Critical hit (Burn: +37). 01819_ Acquired Rocket Launcher. 01824_ U-05 Engineer lays Concrete. Map ----- +----------------------------------------------------+ | #???????####### "R #????????##?????????????????? | | #??"???##!!!!## """ ######### #?????????????????? | | #??????#! !# "" ## #?????????????????? | | #??????# #? ?# """ #?????????????????? | | ####+### ####+#### """ #?????????????????? | | # """ #?????????????????? | | / #?????????????????? | | # ""#?????????????????? | | ##########+###### ## Y"#?????????????????? | | #???????? ???# ## ""#?????????????????? | | #?????#??""" ???# ## #?????????????????? | | !#??????? """ ???# ####/##+###?????????????????? | | #??????? """ ???# #??# #???????????????????? | | #?????## ??# #??# #???????????????????? | | #??????# ??# #??# #???????????????????? | | ############/##?# #??# #???????????????????? | | %# #??# #??# #??# #???????????????????? | | #= #??# #??# #??# ####????????????????? | | %+ #??# #??# #??# #????????????????? | | # !! #??# #??# #??# #????????????????? | | # != #??# #??# #??# ###??????????????? | | #########??# #??# #### #??????????????? | | #####?????###+#### #??????????????? | | ####### ! # ########## #??????????????? | | # ##[ # #########? #??????????????? | | """ # ## ! # # @ #?? #??????????????? | | """ # ##[ # # """ #?? #??????????????? | | """ # ## / # [ """ #??? #??????????????? | | # ## # """ #??? ??????????????? | | # ####/#### Y #???? ?????????????? | | # ####% """ +????? ?????????????? | | ##### /*[ % g gu """ #???????????????????? | | ????# ! #### """ #???????????????????? | | ????######??###### # #???????????????????? | | ?????????????????# u # #???????????????????? | | ?????????????????#^ # #???????????????????? | | ?????????????????# #########???????????????????? | | ?????????????????# #???????????????????????????? | | ?????????????????# #???????????????????????????? | | ?????????????????# #???????????????????????????? | | ????????????????? ???????????????????????????? | | ????????????????? ???????????????????????????? | | ???????????????? T ???????????????????????????? | | ????????????????? ???????????????????????????? | | ????????????????# ???????????????????????????? | | ????????????????## ????????????????????????????? | | ?????????????????? ? ????????????????????????????? | | ???????????????????? ????????????????????????????? | | ?????????????????????????????????????????????????? | | ?????????????????????????????????????????????????? | +----------------------------------------------------+ Best States ------------- Heat Dissipation 38 Energy Generation 15 Energy Capacity 275 Matter Stores 300 Matter Capacity 300 Sight Range 18 Terrain Scan Range 16 Terrain Scan Density 10 Evasion (%) 55 Item Schematics ----------------- None Robot Schematics ------------------ None Fabricated ------------ Nothing Repaired ---------- Nothing Studied --------- None Alien Tech Used ----------------- None Achievements -------------- Junior Dev Challenges ------------ None Game ------ Seed PointyPotentialDisplacer Manual? 0 Play Time 00:20:40 Cumulative 14.3 hours Start 2026.03.10 @ 10:43:13 End 2026.03.10 @ 11:03:54 Sessions 1 Manual Loads 0 Difficulty Rogue Special Mode None Game No. 27 Rogue 27 Adventurer 0 Explorer 0 Win Type - Total 0 Types 0/0/0/0/0/0/0/0/0/0 Lore% 21 Gallery% 16 Achievement% 14 Wizard Run 0 Options --------- Layout 1 ASCII 0 Keyboard 0 Movement Numpad Keybinds 0 Fullscreen 1 Font 24/Smallcaps Map View 50x35 Zoom Use 0% Tactical HUD 1 Map Filters NONE Filters NONE Steam 1 RUN: 867f6941-da89-4d0e-80b4-40035178e05c